[Event "Titled Tuesday Blitz December 13 Late 2022"]
[White "Nakamura, Hikaru"]
[Black "Santos Flores, Alberto"]
[WhiteFideId "2016192"]
[BlackFideId "3601234"]
[WhiteElo "2909"]
[BlackElo "2235"]
[Result "1-0"]
[Round "01"]
[TimeControl "180+1"]
[Date "2022.12.13"]
[WhiteClock "0:01:59"]
[BlackClock "0:00:17"]

1. Nf3 {[%clk 0:03:00]}  d5 {[%clk 0:02:54]} 2. g3 {[%clk 0:03:00]}  Nf6 {[%clk 0:02:54]} 3. Bg2 {[%clk 0:02:59]}  c6 {[%clk 0:02:53]} 4. d3 {[%clk 0:03:00]}  Bf5 {[%clk 0:02:51]} 5. Nbd2 {[%clk 0:02:59]}  h6 {[%clk 0:02:51]} 6. b3 {[%clk 0:02:59]}  e6 {[%clk 0:02:50]} 7. Bb2 {[%clk 0:02:59]}  Be7 {[%clk 0:02:50]} 8. e3 {[%clk 0:02:56]}  O-O {[%clk 0:02:50]} 9. Qe2 {[%clk 0:02:56]}  a5 {[%clk 0:02:47]} 10. a3 {[%clk 0:02:56]}  Bh7 {[%clk 0:02:46]} 11. O-O {[%clk 0:02:56]}  Nbd7 {[%clk 0:02:45]} 12. e4 {[%clk 0:02:56]}  dxe4 {[%clk 0:02:43]} 13. dxe4 {[%clk 0:02:56]}  Nc5 {[%clk 0:02:43]} 14. Ne5 {[%clk 0:02:56]}  Nfd7 {[%clk 0:02:42]} 15. Nxd7 {[%clk 0:02:55]}  Nxd7 {[%clk 0:02:39]} 16. a4 {[%clk 0:02:56]}  Bf6 {[%clk 0:02:36]} 17. e5 {[%clk 0:02:56]}  Be7 {[%clk 0:02:35]} 18. Nc4 {[%clk 0:02:56]}  Qc7 {[%clk 0:02:27]} 19. Rfd1 {[%clk 0:02:55]}  Rfd8 {[%clk 0:02:23]} 20. Bc3 {[%clk 0:02:51]}  Bb4 {[%clk 0:01:56]} 21. Bxb4 {[%clk 0:02:47]}  axb4 {[%clk 0:01:57]} 22. Nd6 {[%clk 0:02:47]}  Ra5 {[%clk 0:01:47]} 23. f4 {[%clk 0:02:42]}  Nb6 {[%clk 0:01:42]} 24. Rd4 {[%clk 0:02:37]}  Nd5 {[%clk 0:01:35]} 25. Qf2 {[%clk 0:02:35]}  b5 {[%clk 0:01:24]} 26. Bxd5 {[%clk 0:02:22]}  exd5 {[%clk 0:01:19]} 27. Rxb4 {[%clk 0:02:22]}  bxa4 {[%clk 0:01:12]} 28. Rbxa4 {[%clk 0:02:22]}  Rxa4 {[%clk 0:01:11]} 29. Rxa4 {[%clk 0:02:23]}  c5 {[%clk 0:00:57]} 30. Qd2 {[%clk 0:02:18]}  d4 {[%clk 0:00:52]} 31. Qe2 {[%clk 0:02:18]}  Qc6 {[%clk 0:00:49]} 32. Ra7 {[%clk 0:02:13]}  Rf8 {[%clk 0:00:28]} 33. f5 {[%clk 0:02:05]}  Qd5 {[%clk 0:00:24]} 34. g4 {[%clk 0:02:05]}  h5 {[%clk 0:00:22]} 35. h3 {[%clk 0:02:05]}  hxg4 {[%clk 0:00:22]} 36. hxg4 {[%clk 0:02:06]}  f6 {[%clk 0:00:17]} 37. exf6 {[%clk 0:01:59]}  Qxd6 {[%clk 0:00:17]} 38. Qc4+ {[%clk 0:01:59]} 1-0


[Site "https://www.chess.com"]

[Event "Titled Tuesday Blitz December 13 Late 2022"]
[White "Nasuta, Grzegorz"]
[Black "Novikova, Galina"]
[WhiteFideId "1141686"]
[BlackFideId "4157095"]
[WhiteElo "2441"]
[BlackElo "1953"]
[Result "1-0"]
[Round "01"]
[TimeControl "180+1"]
[Date "2022.12.14"]
[WhiteClock "0:00:06"]
[BlackClock "0:00:03"]

1. e4 {[%clk 0:03:00]}  e6 {[%clk 0:02:58]} 2. d4 {[%clk 0:03:00]}  d5 {[%clk 0:02:59]} 3. Nc3 {[%clk 0:03:00]}  Bb4 {[%clk 0:02:59]} 4. exd5 {[%clk 0:02:50]}  exd5 {[%clk 0:02:59]} 5. Bd3 {[%clk 0:02:50]}  Nf6 {[%clk 0:02:49]} 6. Ne2 {[%clk 0:02:49]}  Bg4 {[%clk 0:02:44]} 7. f3 {[%clk 0:02:46]}  Bh5 {[%clk 0:02:44]} 8. O-O {[%clk 0:02:45]}  O-O {[%clk 0:02:43]} 9. Nf4 {[%clk 0:02:45]}  Bg6 {[%clk 0:02:43]} 10. Nxg6 {[%clk 0:02:46]}  hxg6 {[%clk 0:02:44]} 11. Bg5 {[%clk 0:02:33]}  c6 {[%clk 0:02:45]} 12. f4 {[%clk 0:02:34]}  Qb6 {[%clk 0:02:37]} 13. Ne2 {[%clk 0:02:03]}  Nbd7 {[%clk 0:02:21]} 14. f5 {[%clk 0:02:01]}  gxf5 {[%clk 0:02:00]} 15. Bxf5 {[%clk 0:02:00]}  Rae8 {[%clk 0:01:40]} 16. Ng3 {[%clk 0:01:48]}  c5 {[%clk 0:01:30]} 17. c3 {[%clk 0:01:46]}  Ba5 {[%clk 0:01:29]} 18. dxc5 {[%clk 0:01:25]}  Qxc5+ {[%clk 0:01:25]} 19. Kh1 {[%clk 0:01:25]}  Bc7 {[%clk 0:01:23]} 20. Nh5 {[%clk 0:01:25]}  Be5 {[%clk 0:01:21]} 21. Qf3 {[%clk 0:01:06]}  Ne4 {[%clk 0:01:04]} 22. Be3 {[%clk 0:00:50]}  Qd6 {[%clk 0:00:56]} 23. Qh3 {[%clk 0:00:49]}  Ndf6 {[%clk 0:00:31]} 24. Nxf6+ {[%clk 0:00:32]}  Nxf6 {[%clk 0:00:32]} 25. Bg5 {[%clk 0:00:32]}  g6 {[%clk 0:00:28]} 26. Bc2 {[%clk 0:00:24]}  Nh7 {[%clk 0:00:24]} 27. Bd2 {[%clk 0:00:16]}  Bg7 {[%clk 0:00:22]} 28. Rad1 {[%clk 0:00:14]}  Re2 {[%clk 0:00:18]} 29. Bb3 {[%clk 0:00:14]}  Rfe8 {[%clk 0:00:11]} 30. Bf4 {[%clk 0:00:14]}  Qe7 {[%clk 0:00:06]} 31. Bxd5 {[%clk 0:00:14]}  Nf6 {[%clk 0:00:07]} 32. Bc4 {[%clk 0:00:13]}  Rxb2 {[%clk 0:00:06]} 33. Bg5 {[%clk 0:00:13]}  Qe5 {[%clk 0:00:03]} 34. Bxf6 {[%clk 0:00:12]}  Bxf6 {[%clk 0:00:04]} 35. Rd7 {[%clk 0:00:11]}  Re7 {[%clk 0:00:04]} 36. Rxe7 {[%clk 0:00:11]}  Qxe7 {[%clk 0:00:05]} 37. Qg4 {[%clk 0:00:10]}  Kg7 {[%clk 0:00:05]} 38. Bb3 {[%clk 0:00:10]}  Bxc3 {[%clk 0:00:04]} 39. h4 {[%clk 0:00:06]}  Bf6 {[%clk 0:00:04]} 40. h5 {[%clk 0:00:06]}  Qe5 {[%clk 0:00:03]} 41. hxg6 {[%clk 0:00:06]}  fxg6 {[%clk 0:00:04]} 42. Qd7+ {[%clk 0:00:03]}  Kh6 {[%clk 0:00:02]} 43. Qh3+ {[%clk 0:00:04]}  Qh5 {[%clk 0:00:03]} 44. Qxh5+ {[%clk 0:00:04]}  Kxh5 {[%clk 0:00:03]} 45. Rxf6 {[%clk 0:00:05]}  Rb1+ {[%clk 0:00:03]} 46. Kh2 {[%clk 0:00:05]}  Kg5 {[%clk 0:00:04]} 47. Rf7 {[%clk 0:00:06]}  a6 {[%clk 0:00:03]} 48. Rxb7 {[%clk 0:00:06]} 1-0


[Site "https://www.chess.com"]

[Event "Titled Tuesday Blitz December 13 Late 2022"]
[White "O`Gorman, Tom"]
[Black "De Souza, Cristiano Gomes"]
[WhiteFideId "2508249"]
[BlackFideId "2151758"]
[WhiteElo "2271"]
[BlackElo "2068"]
[Result "1-0"]
[Round "01"]
[TimeControl "180+1"]
[Date "2022.12.14"]
[WhiteClock "0:00:50"]
[BlackClock "0:00:19"]

1. e4 {[%clk 0:03:00]}  c5 {[%clk 0:02:59]} 2. Nf3 {[%clk 0:03:00]}  d6 {[%clk 0:02:59]} 3. d4 {[%clk 0:02:59]}  cxd4 {[%clk 0:03:00]} 4. Nxd4 {[%clk 0:03:00]}  Nf6 {[%clk 0:03:00]} 5. Nc3 {[%clk 0:03:01]}  a6 {[%clk 0:02:59]} 6. Bg5 {[%clk 0:03:00]}  e6 {[%clk 0:02:59]} 7. f4 {[%clk 0:03:00]}  Be7 {[%clk 0:02:59]} 8. Qf3 {[%clk 0:03:00]}  h6 {[%clk 0:02:59]} 9. Bh4 {[%clk 0:02:59]}  g5 {[%clk 0:03:00]} 10. fxg5 {[%clk 0:03:00]}  Nfd7 {[%clk 0:02:59]} 11. Nxe6 {[%clk 0:02:59]}  fxe6 {[%clk 0:02:59]} 12. Qh5+ {[%clk 0:02:59]}  Kf8 {[%clk 0:02:59]} 13. Bb5 {[%clk 0:03:00]}  Rh7 {[%clk 0:02:58]} 14. e5 {[%clk 0:02:53]}  Nxe5 {[%clk 0:02:54]} 15. O-O+ {[%clk 0:02:51]}  Kg8 {[%clk 0:02:51]} 16. g6 {[%clk 0:02:47]}  Rg7 {[%clk 0:02:50]} 17. Bxe7 {[%clk 0:02:47]}  Qxe7 {[%clk 0:02:48]} 18. Bd3 {[%clk 0:02:45]}  Nbc6 {[%clk 0:02:42]} 19. Ne4 {[%clk 0:02:45]}  Nd7 {[%clk 0:02:18]} 20. Qxh6 {[%clk 0:02:37]}  Nce5 {[%clk 0:02:12]} 21. Ng5 {[%clk 0:02:31]}  Nxd3 {[%clk 0:02:10]} 22. cxd3 {[%clk 0:02:31]}  Ne5 {[%clk 0:02:08]} 23. Nf7 {[%clk 0:01:47]}  Nxf7 {[%clk 0:02:01]} 24. gxf7+ {[%clk 0:01:47]}  Rxf7 {[%clk 0:02:01]} 25. Rxf7 {[%clk 0:01:42]}  Qxf7 {[%clk 0:02:01]} 26. Rf1 {[%clk 0:01:41]}  Qg7 {[%clk 0:02:00]} 27. Qh4 {[%clk 0:01:39]}  Bd7 {[%clk 0:02:00]} 28. Rf3 {[%clk 0:01:38]}  Qxb2 {[%clk 0:00:49]} 29. Rg3+ {[%clk 0:01:25]}  Kf8 {[%clk 0:00:36]} 30. Qh6+ {[%clk 0:01:25]}  Ke7 {[%clk 0:00:32]} 31. Qh4+ {[%clk 0:01:10]}  Kf8 {[%clk 0:00:20]} 32. Qh6+ {[%clk 0:00:50]}  Ke7 {[%clk 0:00:18]} 33. Rg7+ {[%clk 0:00:51]}  Kd8 {[%clk 0:00:18]} 34. Qh8+ {[%clk 0:00:51]}  Be8 {[%clk 0:00:16]} 35. Rd7+ {[%clk 0:00:51]}  Kxd7 {[%clk 0:00:15]} 36. Qxb2 {[%clk 0:00:52]}  b5 {[%clk 0:00:14]} 37. Qg7+ {[%clk 0:00:51]}  Kc6 {[%clk 0:00:14]} 38. Qe7 {[%clk 0:00:51]}  Bd7 {[%clk 0:00:14]} 39. h4 {[%clk 0:00:51]}  Re8 {[%clk 0:00:14]} 40. Qg7 {[%clk 0:00:50]}  e5 {[%clk 0:00:14]} 41. h5 {[%clk 0:00:50]}  d5 {[%clk 0:00:14]} 42. h6 {[%clk 0:00:50]}  e4 {[%clk 0:00:15]} 43. dxe4 {[%clk 0:00:50]}  Rxe4 {[%clk 0:00:14]} 44. h7 {[%clk 0:00:49]}  Rg4 {[%clk 0:00:14]} 45. h8=Q {[%clk 0:00:47]}  Rxg7 {[%clk 0:00:14]} 46. Qxg7 {[%clk 0:00:48]}  Kc5 {[%clk 0:00:14]} 47. Kf2 {[%clk 0:00:49]}  Bc6 {[%clk 0:00:14]} 48. Ke3 {[%clk 0:00:49]}  b4 {[%clk 0:00:15]} 49. Qd4+ {[%clk 0:00:49]}  Kb5 {[%clk 0:00:16]} 50. g4 {[%clk 0:00:49]}  a5 {[%clk 0:00:17]} 51. g5 {[%clk 0:00:50]}  a4 {[%clk 0:00:17]} 52. g6 {[%clk 0:00:49]}  b3 {[%clk 0:00:18]} 53. axb3 {[%clk 0:00:50]}  axb3 {[%clk 0:00:19]} 54. g7 {[%clk 0:00:50]} 1-0


[Site "https://www.chess.com"]

[Event "Titled Tuesday Blitz December 13 Late 2022"]
[White "Omelja, Artem"]
[Black "Mitrovic, Darko R"]
[WhiteFideId "14119846"]
[BlackFideId "927023"]
[WhiteElo "2404"]
[BlackElo "2150"]
[Result "1-0"]
[Round "01"]
[TimeControl "180+1"]
[Date "2022.12.14"]
[WhiteClock "0:01:12"]
[BlackClock "0:00:03"]

1. e4 {[%clk 0:02:48]}  e6 {[%clk 0:02:41]} 2. d3 {[%clk 0:02:40]}  d5 {[%clk 0:02:39]} 3. Nd2 {[%clk 0:02:40]}  Nf6 {[%clk 0:02:39]} 4. Ngf3 {[%clk 0:02:39]}  Be7 {[%clk 0:02:38]} 5. g3 {[%clk 0:02:36]}  O-O {[%clk 0:02:38]} 6. Bg2 {[%clk 0:02:36]}  c5 {[%clk 0:02:37]} 7. O-O {[%clk 0:02:36]}  Nc6 {[%clk 0:02:37]} 8. Re1 {[%clk 0:02:36]}  b5 {[%clk 0:02:35]} 9. e5 {[%clk 0:02:35]}  Nd7 {[%clk 0:02:15]} 10. Nf1 {[%clk 0:02:35]}  a5 {[%clk 0:02:15]} 11. h4 {[%clk 0:02:34]}  Ba6 {[%clk 0:02:15]} 12. N1h2 {[%clk 0:02:34]}  Rc8 {[%clk 0:02:15]} 13. h5 {[%clk 0:02:29]}  b4 {[%clk 0:02:13]} 14. Ng4 {[%clk 0:02:28]}  a4 {[%clk 0:02:11]} 15. h6 {[%clk 0:02:28]}  g6 {[%clk 0:02:11]} 16. Bf4 {[%clk 0:02:28]}  Nd4 {[%clk 0:02:00]} 17. Qd2 {[%clk 0:02:13]}  Nxf3+ {[%clk 0:01:50]} 18. Bxf3 {[%clk 0:02:02]}  g5 {[%clk 0:01:45]} 19. Nf6+ {[%clk 0:01:53]}  Bxf6 {[%clk 0:01:41]} 20. exf6 {[%clk 0:01:52]}  gxf4 {[%clk 0:01:41]} 21. Qxf4 {[%clk 0:01:42]}  Qxf6 {[%clk 0:01:40]} 22. Qd6 {[%clk 0:01:38]}  Nb8 {[%clk 0:01:38]} 23. Bxd5 {[%clk 0:01:36]}  Rfd8 {[%clk 0:01:13]} 24. Qb6 {[%clk 0:01:31]}  Rxd5 {[%clk 0:01:10]} 25. Re4 {[%clk 0:01:31]}  Qxh6 {[%clk 0:01:05]} 26. Rae1 {[%clk 0:01:28]}  Rh5 {[%clk 0:00:51]} 27. R1e3 {[%clk 0:01:12]}  Rh1+ {[%clk 0:00:25]} 28. Kg2 {[%clk 0:01:12]}  Qh2+ {[%clk 0:00:18]} 29. Kf3 {[%clk 0:01:12]}  Rf1 {[%clk 0:00:17]} 30. Rg4+ {[%clk 0:01:10]}  Kh8 {[%clk 0:00:16]} 31. Re2 {[%clk 0:01:11]}  Qh1+ {[%clk 0:00:09]} 32. Ke3 {[%clk 0:01:11]}  Re1 {[%clk 0:00:05]} 33. Qd6 {[%clk 0:01:11]}  Rxe2+ {[%clk 0:00:04]} 34. Kxe2 {[%clk 0:01:12]}  Bb7 {[%clk 0:00:03]} 35. Qe5+ {[%clk 0:01:11]}  f6 {[%clk 0:00:03]} 36. Qxf6# {[%clk 0:01:12]} 1-0


[Site "https://www.chess.com"]

[Event "Titled Tuesday Blitz December 13 Late 2022"]
[White "Oro, Faustino"]
[Black "Kaganskiy, Gleb"]
[WhiteFideId "20000197"]
[BlackFideId "4132025"]
[WhiteElo "1984"]
[BlackElo "2165"]
[Result "1-0"]
[Round "01"]
[TimeControl "180+1"]
[Date "2022.12.14"]
[WhiteClock "0:00:46"]
[BlackClock "0:00:06"]

1. e4 {[%clk 0:02:57]}  e6 {[%clk 0:02:59]} 2. d4 {[%clk 0:02:56]}  d5 {[%clk 0:02:59]} 3. e5 {[%clk 0:02:55]}  c5 {[%clk 0:02:59]} 4. c3 {[%clk 0:02:55]}  Qb6 {[%clk 0:02:57]} 5. Nf3 {[%clk 0:02:55]}  Nc6 {[%clk 0:02:55]} 6. Be2 {[%clk 0:02:55]}  cxd4 {[%clk 0:02:39]} 7. cxd4 {[%clk 0:02:55]}  Nh6 {[%clk 0:02:39]} 8. Nc3 {[%clk 0:02:40]}  Nf5 {[%clk 0:02:35]} 9. Na4 {[%clk 0:02:39]}  Qd8 {[%clk 0:02:28]} 10. O-O {[%clk 0:02:36]}  Be7 {[%clk 0:02:24]} 11. Be3 {[%clk 0:02:31]}  O-O {[%clk 0:02:20]} 12. Rc1 {[%clk 0:02:27]}  Bd7 {[%clk 0:02:20]} 13. Nc5 {[%clk 0:02:25]}  Bxc5 {[%clk 0:02:14]} 14. Rxc5 {[%clk 0:02:24]}  Nxe3 {[%clk 0:02:01]} 15. fxe3 {[%clk 0:02:24]}  Ne7 {[%clk 0:02:01]} 16. Qd2 {[%clk 0:02:22]}  Rc8 {[%clk 0:01:52]} 17. Rfc1 {[%clk 0:02:21]}  Qb6 {[%clk 0:01:47]} 18. Bd3 {[%clk 0:02:18]}  h6 {[%clk 0:01:28]} 19. b4 {[%clk 0:02:07]}  Rxc5 {[%clk 0:01:20]} 20. Rxc5 {[%clk 0:02:02]}  Rc8 {[%clk 0:01:18]} 21. Rxc8+ {[%clk 0:01:49]}  Nxc8 {[%clk 0:01:15]} 22. a3 {[%clk 0:01:42]}  Ne7 {[%clk 0:01:09]} 23. Kf2 {[%clk 0:01:39]}  Qc7 {[%clk 0:01:05]} 24. g4 {[%clk 0:01:29]}  Ba4 {[%clk 0:00:58]} 25. h4 {[%clk 0:01:19]}  Bb3 {[%clk 0:00:53]} 26. g5 {[%clk 0:01:12]}  hxg5 {[%clk 0:00:51]} 27. hxg5 {[%clk 0:01:12]}  Bc4 {[%clk 0:00:48]} 28. Bc2 {[%clk 0:01:10]}  Qd8 {[%clk 0:00:25]} 29. Kg3 {[%clk 0:01:03]}  Nf5+ {[%clk 0:00:22]} 30. Kf4 {[%clk 0:00:51]}  f6 {[%clk 0:00:11]} 31. gxf6 {[%clk 0:00:49]}  gxf6 {[%clk 0:00:10]} 32. Qg2+ {[%clk 0:00:49]}  Kf7 {[%clk 0:00:11]} 33. Qh3 {[%clk 0:00:48]}  Qg8 {[%clk 0:00:08]} 34. Qh5+ {[%clk 0:00:47]}  Qg6 {[%clk 0:00:08]} 35. Qxg6+ {[%clk 0:00:46]}  Kxg6 {[%clk 0:00:09]} 36. Bxf5+ {[%clk 0:00:46]}  exf5 {[%clk 0:00:09]} 37. Nh4+ {[%clk 0:00:46]}  Kf7 {[%clk 0:00:09]} 38. Nxf5 {[%clk 0:00:46]}  fxe5+ {[%clk 0:00:09]} 39. Kxe5 {[%clk 0:00:46]}  Bb3 {[%clk 0:00:06]} 40. Nd6+ {[%clk 0:00:46]}  Ke7 {[%clk 0:00:05]} 41. Nxb7 {[%clk 0:00:46]}  Kd7 {[%clk 0:00:06]} 42. Nc5+ {[%clk 0:00:46]} 1-0


[Site "https://www.chess.com"]

[Event "Titled Tuesday Blitz December 13 Late 2022"]
[White "Paravyan, David"]
[Black "Goncalves, Davi Sulzbacher"]
[WhiteFideId "4194985"]
[BlackFideId "2154510"]
[WhiteElo "2551"]
[BlackElo "2182"]
[Result "1-0"]
[Round "01"]
[TimeControl "180+1"]
[Date "2022.12.13"]
[WhiteClock "0:02:00"]
[BlackClock "0:00:12"]

1. e4 {[%clk 0:02:59]}  c5 {[%clk 0:02:59]} 2. Nf3 {[%clk 0:03:00]}  Nc6 {[%clk 0:03:00]} 3. Nc3 {[%clk 0:03:00]}  Nf6 {[%clk 0:02:59]} 4. Bb5 {[%clk 0:02:59]}  Qc7 {[%clk 0:02:54]} 5. O-O {[%clk 0:02:59]}  Nd4 {[%clk 0:02:52]} 6. Re1 {[%clk 0:02:59]}  a6 {[%clk 0:02:48]} 7. Bf1 {[%clk 0:02:59]}  Ng4 {[%clk 0:02:47]} 8. g3 {[%clk 0:02:59]}  Nxf3+ {[%clk 0:02:47]} 9. Qxf3 {[%clk 0:03:00]}  Ne5 {[%clk 0:02:48]} 10. Qe2 {[%clk 0:03:01]}  e6 {[%clk 0:02:47]} 11. b3 {[%clk 0:03:01]}  Be7 {[%clk 0:02:46]} 12. Bb2 {[%clk 0:03:01]}  O-O {[%clk 0:02:45]} 13. Nd1 {[%clk 0:02:58]}  b5 {[%clk 0:02:41]} 14. Ne3 {[%clk 0:02:58]}  Bb7 {[%clk 0:02:40]} 15. Bg2 {[%clk 0:02:58]}  f5 {[%clk 0:02:15]} 16. exf5 {[%clk 0:02:56]}  Bxg2 {[%clk 0:02:14]} 17. Kxg2 {[%clk 0:02:57]}  Qc6+ {[%clk 0:02:13]} 18. f3 {[%clk 0:02:57]}  Bf6 {[%clk 0:02:05]} 19. Bxe5 {[%clk 0:02:55]}  Bxe5 {[%clk 0:02:04]} 20. c3 {[%clk 0:02:55]}  exf5 {[%clk 0:02:03]} 21. Qd3 {[%clk 0:02:56]}  f4 {[%clk 0:01:56]} 22. Qd5+ {[%clk 0:02:51]}  Kh8 {[%clk 0:01:51]} 23. Qxe5 {[%clk 0:02:40]}  Rae8 {[%clk 0:01:08]} 24. Qd5 {[%clk 0:02:40]}  fxe3 {[%clk 0:01:09]} 25. Qxc6 {[%clk 0:02:40]}  dxc6 {[%clk 0:01:10]} 26. dxe3 {[%clk 0:02:40]}  Rd8 {[%clk 0:01:01]} 27. Rad1 {[%clk 0:02:40]}  Kg8 {[%clk 0:01:01]} 28. Kf2 {[%clk 0:02:39]}  Kf7 {[%clk 0:01:00]} 29. Ke2 {[%clk 0:02:40]}  Ke7 {[%clk 0:00:59]} 30. Rxd8 {[%clk 0:02:39]}  Rxd8 {[%clk 0:01:00]} 31. Rd1 {[%clk 0:02:39]}  Ra8 {[%clk 0:01:00]} 32. e4 {[%clk 0:02:38]}  a5 {[%clk 0:01:01]} 33. Ke3 {[%clk 0:02:29]}  a4 {[%clk 0:01:01]} 34. b4 {[%clk 0:02:29]}  a3 {[%clk 0:00:31]} 35. bxc5 {[%clk 0:02:29]}  Rb8 {[%clk 0:00:27]} 36. Rd6 {[%clk 0:02:25]}  Rc8 {[%clk 0:00:26]} 37. f4 {[%clk 0:02:23]}  Rc7 {[%clk 0:00:26]} 38. e5 {[%clk 0:02:24]}  g6 {[%clk 0:00:25]} 39. Ke4 {[%clk 0:02:24]}  Kf7 {[%clk 0:00:25]} 40. g4 {[%clk 0:02:24]}  h5 {[%clk 0:00:25]} 41. f5 {[%clk 0:02:23]}  hxg4 {[%clk 0:00:24]} 42. fxg6+ {[%clk 0:02:14]}  Kg7 {[%clk 0:00:24]} 43. Kf5 {[%clk 0:02:13]}  Rc8 {[%clk 0:00:23]} 44. Rd7+ {[%clk 0:02:13]}  Kg8 {[%clk 0:00:22]} 45. e6 {[%clk 0:02:12]}  Kf8 {[%clk 0:00:15]} 46. Kf6 {[%clk 0:02:12]}  g3 {[%clk 0:00:11]} 47. Rd8+ {[%clk 0:02:09]}  Rxd8 {[%clk 0:00:11]} 48. e7+ {[%clk 0:02:10]}  Ke8 {[%clk 0:00:12]} 49. g7 {[%clk 0:02:00]} 1-0


[Site "https://www.chess.com"]

[Event "Titled Tuesday Blitz December 13 Late 2022"]
[White "Parkhov, Yair"]
[Black "Weisz, Bryan"]
[WhiteFideId "2813408"]
[BlackFideId "30934133"]
[WhiteElo "2421"]
[BlackElo "2305"]
[Result "1-0"]
[Round "01"]
[TimeControl "180+1"]
[Date "2022.12.14"]
[WhiteClock "0:00:19"]
[BlackClock "0:00:10"]

1. e4 {[%clk 0:02:57]}  e5 {[%clk 0:02:58]} 2. Nf3 {[%clk 0:02:57]}  Nc6 {[%clk 0:02:59]} 3. Bc4 {[%clk 0:02:56]}  Nge7 {[%clk 0:02:57]} 4. d4 {[%clk 0:02:37]}  exd4 {[%clk 0:02:49]} 5. O-O {[%clk 0:02:13]}  Ng6 {[%clk 0:02:39]} 6. Nxd4 {[%clk 0:02:04]}  Bc5 {[%clk 0:02:29]} 7. Nf5 {[%clk 0:02:00]}  O-O {[%clk 0:02:23]} 8. Qh5 {[%clk 0:01:48]}  Nce5 {[%clk 0:02:02]} 9. Bg5 {[%clk 0:01:42]}  Qe8 {[%clk 0:01:53]} 10. Nxg7 {[%clk 0:01:35]}  Nf4 {[%clk 0:00:29]} 11. Qh6 {[%clk 0:01:20]}  Ng4 {[%clk 0:00:23]} 12. Qh4 {[%clk 0:00:59]}  Kxg7 {[%clk 0:00:22]} 13. Bxf4 {[%clk 0:00:52]}  d5 {[%clk 0:00:18]} 14. Bxd5 {[%clk 0:00:33]}  c6 {[%clk 0:00:19]} 15. h3 {[%clk 0:00:23]}  Nxf2 {[%clk 0:00:16]} 16. Bh6+ {[%clk 0:00:19]}  Kg6 {[%clk 0:00:10]} 17. Qg5# {[%clk 0:00:19]} 1-0


[Site "https://www.chess.com"]

[Event "Titled Tuesday Blitz December 13 Late 2022"]
[White "Petrovic, Aleksa"]
[Black "Keymer, Vincent"]
[WhiteFideId "967629"]
[BlackFideId "12940690"]
[WhiteElo "2230"]
[BlackElo "2600"]
[Result "0-1"]
[Round "01"]
[TimeControl "180+1"]
[Date "2022.12.13"]
[WhiteClock "0:00:01"]
[BlackClock "0:00:05"]

1. d4 {[%clk 0:02:59]}  Nf6 {[%clk 0:02:57]} 2. c4 {[%clk 0:02:59]}  e6 {[%clk 0:02:56]} 3. Nf3 {[%clk 0:02:58]}  d5 {[%clk 0:02:56]} 4. Nc3 {[%clk 0:02:58]}  h6 {[%clk 0:02:56]} 5. Bf4 {[%clk 0:02:53]}  Bd6 {[%clk 0:02:55]} 6. Bxd6 {[%clk 0:02:50]}  Qxd6 {[%clk 0:02:56]} 7. e3 {[%clk 0:02:48]}  O-O {[%clk 0:02:56]} 8. Rc1 {[%clk 0:02:48]}  b6 {[%clk 0:02:55]} 9. cxd5 {[%clk 0:02:43]}  Nxd5 {[%clk 0:02:56]} 10. Nxd5 {[%clk 0:02:43]}  exd5 {[%clk 0:02:57]} 11. Qc2 {[%clk 0:02:38]}  c6 {[%clk 0:02:54]} 12. Bd3 {[%clk 0:02:29]}  Be6 {[%clk 0:02:54]} 13. O-O {[%clk 0:02:20]}  Rc8 {[%clk 0:02:52]} 14. Ne5 {[%clk 0:02:13]}  c5 {[%clk 0:02:47]} 15. Bh7+ {[%clk 0:02:09]}  Kf8 {[%clk 0:02:41]} 16. Bf5 {[%clk 0:02:08]}  Nc6 {[%clk 0:02:10]} 17. Bxe6 {[%clk 0:01:42]}  Qxe6 {[%clk 0:02:09]} 18. Nxc6 {[%clk 0:01:31]}  Rxc6 {[%clk 0:01:40]} 19. Qh7 {[%clk 0:01:22]}  f6 {[%clk 0:01:30]} 20. dxc5 {[%clk 0:01:17]}  bxc5 {[%clk 0:01:29]} 21. Rc2 {[%clk 0:01:04]}  Kf7 {[%clk 0:01:27]} 22. Qd3 {[%clk 0:01:00]}  Rd8 {[%clk 0:01:16]} 23. Rfc1 {[%clk 0:00:58]}  c4 {[%clk 0:00:56]} 24. Rxc4 {[%clk 0:00:47]}  dxc4 {[%clk 0:00:48]} 25. Qxd8 {[%clk 0:00:48]}  Kg6 {[%clk 0:00:37]} 26. Qd4 {[%clk 0:00:47]}  a6 {[%clk 0:00:34]} 27. h4 {[%clk 0:00:46]}  h5 {[%clk 0:00:32]} 28. Rc3 {[%clk 0:00:44]}  Kh7 {[%clk 0:00:20]} 29. f3 {[%clk 0:00:43]}  Kg6 {[%clk 0:00:17]} 30. Kf2 {[%clk 0:00:42]}  Kh7 {[%clk 0:00:17]} 31. b3 {[%clk 0:00:30]}  cxb3 {[%clk 0:00:16]} 32. Qd3+ {[%clk 0:00:28]}  Kg8 {[%clk 0:00:14]} 33. Rxc6 {[%clk 0:00:27]}  Qxc6 {[%clk 0:00:15]} 34. Qxb3+ {[%clk 0:00:27]}  Kh7 {[%clk 0:00:15]} 35. Qd3+ {[%clk 0:00:25]}  Kh6 {[%clk 0:00:16]} 36. Qd2 {[%clk 0:00:23]}  Qc4 {[%clk 0:00:14]} 37. e4+ {[%clk 0:00:22]}  Kh7 {[%clk 0:00:14]} 38. Qe2 {[%clk 0:00:22]}  Qd4+ {[%clk 0:00:13]} 39. Qe3 {[%clk 0:00:22]}  Qb4 {[%clk 0:00:13]} 40. g4 {[%clk 0:00:19]}  hxg4 {[%clk 0:00:13]} 41. fxg4 {[%clk 0:00:20]}  a5 {[%clk 0:00:13]} 42. Kg3 {[%clk 0:00:19]}  a4 {[%clk 0:00:12]} 43. g5 {[%clk 0:00:18]}  Qd6+ {[%clk 0:00:11]} 44. Kg4 {[%clk 0:00:14]}  Qe6+ {[%clk 0:00:11]} 45. Kg3 {[%clk 0:00:14]}  Qxa2 {[%clk 0:00:10]} 46. gxf6 {[%clk 0:00:14]}  gxf6 {[%clk 0:00:08]} 47. Qa7+ {[%clk 0:00:14]}  Kg6 {[%clk 0:00:07]} 48. h5+ {[%clk 0:00:14]}  Kh6 {[%clk 0:00:07]} 49. Qe7 {[%clk 0:00:08]}  Qb3+ {[%clk 0:00:08]} 50. Kf4 {[%clk 0:00:08]}  Qb8+ {[%clk 0:00:08]} 51. Kf5 {[%clk 0:00:07]}  Qe5+ {[%clk 0:00:08]} 52. Qxe5 {[%clk 0:00:04]}  fxe5 {[%clk 0:00:09]} 53. Kxe5 {[%clk 0:00:04]}  a3 {[%clk 0:00:09]} 54. Kd6 {[%clk 0:00:04]}  a2 {[%clk 0:00:10]} 55. e5 {[%clk 0:00:04]}  a1=Q {[%clk 0:00:11]} 56. e6 {[%clk 0:00:05]}  Qa4 {[%clk 0:00:06]} 57. Ke7 {[%clk 0:00:03]}  Kxh5 {[%clk 0:00:06]} 58. Kf8 {[%clk 0:00:02]}  Kg6 {[%clk 0:00:05]} 59. e7 {[%clk 0:00:02]}  Qf4+ {[%clk 0:00:05]} 60. Ke8 {[%clk 0:00:02]}  Kf6 {[%clk 0:00:05]} 61. Kd7 {[%clk 0:00:01]}  Qd4+ {[%clk 0:00:05]} 62. Ke8 {[%clk 0:00:01]}  Qd6 {[%clk 0:00:05]} 0-1


[Site "https://www.chess.com"]